fUST/lending_fUST_20250412
["ID","MTS","AMOUNT","RATE_DAILY","PERIOD"]
[357739484,1744408238079,-220873.97735058,0.000246,2]
[357739496,1744408240151,-691.52116,0.000246,2]
[357739516,1744408243056,-500.0,0.00024461,2]
[357739517,1744408243066,-500.0,0.00024461,2]
[357739518,1744408243076,-500.0,0.00024461,2]
[357739519,1744408243086,-500.0,0.00024461,2]
[357739597,1744408246029,-40.56928814,0.00024461,2]
[357739600,1744408246040,-2959.43071186,0.000246,2]
[357739606,1744408246087,-304.62403891,0.000246,2]
[357739613,1744408246147,-13179.5388857,0.000246,2]
[357739615,1744408246157,-404.61855625,0.00024618,2]
[357739617,1744408246167,-151.26327559,0.00024718,2]
[357739619,1744408246177,-175.53707215,0.00024799,2]
[357739621,1744408246186,-183.56220807,0.00024799,2]
[357739623,1744408246196,-151.0,0.000248,10]
[357739625,1744408246206,-900.0,0.00024837,2]
[357739627,1744408246215,-151.26327559,0.00024863,2]
[357739629,1744408246225,-611.53457706,0.00024873,2]
[357739631,1744408246235,-500.0,0.00024873,2]
[357739633,1744408246244,-500.0,0.00024873,2]
[357739635,1744408246254,-500.0,0.00024873,2]
[357739637,1744408246263,-164.00023083,0.00024873,2]
[357739639,1744408246273,-500.0,0.00024873,2]
[357739641,1744408246283,-500.0,0.00024873,2]
[357739643,1744408246293,-151.0,0.000249,10]
[357739645,1744408246302,-1993.20202486,0.000249,2]
[357739648,1744408246315,-1129.01081106,0.000249,2]
[357740238,1744409438199,-250.0,0.00023265,2]
[357740240,1744409438209,-199.32577063,0.00023265,2]
[357740242,1744409438219,-1272.7063439,0.00023277,2]
[357740244,1744409438229,-378.1525177,0.00023353,2]
[357740246,1744409438239,-365.0747995,0.00023436,2]
[357740248,1744409438248,-192.17527,0.00023479,2]
[357740251,1744409438258,-900.0,0.00023737,2]
[357740253,1744409438281,-500.0,0.0002393,2]
[357740255,1744409438291,-419.71244257,0.00024087,2]
[357740257,1744409438301,-160.0,0.00024087,2]
[357740260,1744409438312,-458.3757109,0.00024152,2]
[357740262,1744409438322,-300.0,0.00024471,2]
[357740264,1744409438332,-300.0,0.00024471,2]
[357740266,1744409438342,-500.0,0.00024472,2]
[357740268,1744409438352,-192.90760078,0.00024472,2]
[357740270,1744409438363,-500.0,0.00024472,2]
[357740272,1744409438373,-500.0,0.00024472,2]
[357740274,1744409438384,-500.0,0.00024472,2]
[357740276,1744409438395,-500.0,0.00024472,2]
[357740278,1744409438405,-156.77809841,0.00024472,2]
[357740280,1744409438415,-154.55437289,0.00024472,2]
[357740282,1744409438425,-500.0,0.00024473,2]
[357740284,1744409438435,-370.56024696,0.00024473,2]
[357740287,1744409438448,-129.43975304,0.00024473,2]
[357740289,1744409438459,-500.0,0.00024473,2]
[357740291,1744409438469,-426.74241427,0.00024473,2]
[357740293,1744409438479,-500.0,0.00024473,2]
[357740295,1744409438490,-500.0,0.00024473,2]
[357740297,1744409438501,-443.81783269,0.00024473,2]
[357740299,1744409438514,-56.18216731,0.00024473,2]
[357740302,1744409438524,-500.0,0.00024473,2]
[357740304,1744409438534,-500.0,0.00024473,2]
[357740306,1744409438544,-500.0,0.00024473,2]
[357740308,1744409438555,-500.0,0.00024473,2]
[357740310,1744409438565,-301.71575181,0.00024473,2]
[357740312,1744409438578,-500.0,0.00024473,2]
[357740314,1744409438588,-500.0,0.00024473,2]
[357740316,1744409438598,-706.0,0.00024483,2]
[357740318,1744409438609,-543.0,0.00024483,2]
[357740320,1744409438619,-402.0,0.00024483,2]
[357740322,1744409438630,-500.0,0.00024499,2]
[357740324,1744409438640,-632.42310783,0.00024499,2]
[357740326,1744409438651,-272.313,0.00024499,7]
[357740328,1744409438660,-35098.36597305,0.000245,2]
[357740507,1744409440524,-500.0,0.000245,2]
[357740509,1744409440536,-2871.17374703,0.000245,2]
[357740515,1744409440579,-322621.17228479,0.000245,2]
[357740691,1744409443278,-2961.99944009,0.000245,2]
[357740692,1744409443291,-5947.28855504,0.000245,2]
[357740693,1744409443302,-1892.32199114,0.00024573,2]
[357740694,1744409443312,-158.66264504,0.00024673,2]
[357740695,1744409443325,-378.5943646,0.00024673,2]
[357740696,1744409443337,-3985.94377776,0.00024673,2]
[357740697,1744409443347,-173.90113716,0.00024773,2]
[357740698,1744409443357,-151.0,0.000248,6]
[357740699,1744409443367,-500.0,0.00024873,2]
[357740700,1744409443377,-606.70373608,0.00024873,2]
[357740701,1744409443387,-500.0,0.00024873,2]
[357740702,1744409443398,-564.11156138,0.00024873,2]
[357740703,1744409443408,-500.0,0.00024873,2]
[357740704,1744409443418,-500.0,0.00024873,2]
[357740705,1744409443428,-500.0,0.00024873,2]
[357740706,1744409443439,-500.0,0.00024873,2]
[357740708,1744409443449,-500.0,0.00024873,2]
[357740710,1744409443458,-500.0,0.00024873,2]
[357740711,1744409443469,-500.0,0.00024873,2]
[357740712,1744409443478,-500.0,0.00024873,2]
[357740713,1744409443488,-250.26002353,0.00024873,2]
[357740720,1744409446058,-249.73997647,0.00024873,2]
[357740721,1744409446069,-500.0,0.00024873,2]
[357740722,1744409446079,-244.86193605,0.00024899,2]
[357740723,1744409446088,-234.50830488,0.00024899,2]
[357740724,1744409446098,-77.40431191,0.000249,2]
[357740725,1744409446111,-514.76042803,0.000249,2]
[357740726,1744409446120,-1759.87685476,0.000249,3]
[357740727,1744409446130,-151.0,0.000249,9]
[357740728,1744409446140,-3215.04242844,0.000249,2]
[357740729,1744409446153,-14323.03752638,0.000249,2]
[357740730,1744409446165,-59720.25095268,0.000249,2]
[357740731,1744409446177,-24879.28843497,0.000249,2]
[357740732,1744409446190,-500.0,0.000249,2]
[357740733,1744409446202,-451.0,0.000249,2]
[357740734,1744409446214,-799.99939,0.000249,2]
[357740735,1744409446240,-6424.48046282,0.000249,2]
[357740767,1744410597796,5324.9884629,0.00027,30]
[357740803,1744410632114,-782.42274119,0.0002305,2]
[357740805,1744410632124,-740.59206879,0.0002315,2]
[357740808,1744410632136,-2056.79016444,0.0002315,2]
[357740814,1744410632227,-2022.59301177,0.0002315,2]
[357740815,1744410632237,-250.0,0.00023165,2]
[357740816,1744410632248,-204.5379177,0.00023377,2]
[357740817,1744410632257,-194.4213856,0.00023494,2]
[357740818,1744410632267,-500.0,0.00023784,2]
[357740819,1744410632278,-192.1752712,0.00023809,2]
[357740820,1744410632287,-160.0,0.00023959,2]
[357740822,1744410632297,-453.1997509,0.00024152,2]
[357740824,1744410632307,-300.0,0.00024602,2]
[357740826,1744410632317,-300.0,0.00024602,2]
[357740828,1744410632327,-900.0,0.0002471,2]
[357740830,1744410632336,-900.0,0.00024771,2]
[357740832,1744410632346,-1823.97779726,0.00024773,2]
[357740834,1744410632361,-1191.48939434,0.00024773,2]
[357740836,1744410632371,-1655.78174223,0.00024773,2]
[357740838,1744410632380,-151.0,0.00024785,2]
[357740839,1744410632391,-500.0,0.00024799,2]
[357740840,1744410632400,-292.69617548,0.00024799,2]
[357740841,1744410632410,-217.85,0.00024799,8]
[357740842,1744410632419,-3464.1598207,0.000248,2]
[357740843,1744410632431,-272.07162368,0.000248,2]
[357740847,1744410638389,-543.0,0.00024606,2]
[357740848,1744410638400,-2946.84719781,0.000248,2]
[357740849,1744410638413,-6696.90015969,0.000248,2]
[357740850,1744410638433,-234599.80176778,0.000248,2]
[357740860,1744410640448,-250.0,0.0002295,2]
[357740861,1744410640462,-159.34702725,0.00024602,2]
[357740862,1744410640473,-500.0,0.00024602,2]
[357740863,1744410640483,-302.14973338,0.00024602,2]
[357740864,1744410640547,-197.85026662,0.00024602,2]
[357740865,1744410640558,-166.82466327,0.00024602,2]
[357740866,1744410640568,-206.31101554,0.00024602,2]
[357740867,1744410640581,-293.68898446,0.00024602,2]
[357740868,1744410640591,-500.0,0.00024602,2]
[357740869,1744410640600,-5.7962936,0.00024602,2]
[357740871,1744410643292,-494.2037064,0.00024602,2]
[357740872,1744410643303,-500.0,0.00024602,2]
[357740873,1744410643312,-500.0,0.00024602,2]
[357740874,1744410643322,-460.39678655,0.00024602,2]
[357740875,1744410643331,-706.0,0.00024606,2]
[357740876,1744410643341,-16312.51799752,0.000248,2]
[357740878,1744410643354,-1266.36579595,0.000248,2]
[357740879,1744410643370,-682.73191481,0.000248,2]
[357740899,1744410646249,-1122.8867741,0.000248,2]
[357740900,1744410646262,-102635.71694796,0.000248,2]
[357740901,1744410646272,-644.35602202,0.00024873,2]
[357740902,1744410646281,-434.80079608,0.00024873,2]
[357740903,1744410646290,-500.0,0.00024873,2]
[357740904,1744410646300,-500.0,0.00024873,2]
[357740905,1744410646309,-500.0,0.00024873,2]
[357740906,1744410646319,-500.0,0.00024873,2]
[357740907,1744410646328,-500.0,0.00024873,2]
[357740908,1744410646338,-100.74343094,0.00024873,2]
[357740909,1744410646350,-399.60951019,0.00024873,2]
[357740910,1744410646364,-63.69048981,0.00024885,2]
[357740912,1744410646379,-222.30475638,0.00024885,2]
[357740913,1744410646394,-207.4,0.00024885,2]
[357740915,1744410646405,-151.0,0.00024885,2]
[357740917,1744410646415,-193.55946868,0.00024885,2]
[357740919,1744410646425,-151.0,0.00024885,2]
[357740921,1744410646436,-234.50830488,0.00024899,2]
[357740922,1744410646446,-244.86193605,0.00024899,2]
[357740923,1744410646456,-296.08236997,0.000249,2]
[357740924,1744410646472,-879.93842738,0.000249,3]
[357740925,1744410646484,-190.05985289,0.000249,2]
[357740932,1744410935680,534.22414044,0.00027,30]
[357740936,1744410952540,500.0,0.00027,30]
[357740938,1744410985619,499.99999999,0.00027,30]
[357740939,1744411017540,500.0,0.00027,30]
[357740940,1744411035223,500.0,0.00027,30]
[357740941,1744411048629,500.0,0.00027,30]
[357740949,1744411094443,500.0,0.00027,30]
[357740950,1744411111814,562.03686702,0.00027,30]
[357740951,1744411133984,500.0,0.00027,30]
[357740952,1744411152679,500.0,0.00027,30]
[357740953,1744411242053,500.43048202,0.00027,30]
[357740994,1744411832451,-500.0,0.00023733,2]
[357741005,1744411832550,-400.0,0.00023733,2]
[357741007,1744411832561,-500.0,0.00023755,2]
[357741009,1744411832571,-250.0,0.00023765,2]
[357741011,1744411832582,-160.0,0.00023766,2]
[357741012,1744411832593,-287.664421,0.00023865,2]
[357741014,1744411832603,-900.0,0.00024019,2]
[357741015,1744411832614,-339.8998131,0.00024152,2]
[357741016,1744411832623,-800.0,0.00024545,2]
[357741017,1744411832634,-300.0,0.00024599,2]
[357741018,1744411832644,-300.0,0.00024599,2]
[357741019,1744411832654,-2010.31146106,0.000246,2]
[357741020,1744411832664,-1448.80902446,0.000246,2]
[357741021,1744411832675,-706.0,0.00024606,2]
[357741022,1744411832685,-543.0,0.00024606,2]
[357741023,1744411832696,-500.0,0.00024673,2]
[357741024,1744411832706,-500.0,0.00024673,2]
[357741025,1744411832716,-500.0,0.00024673,2]
[357741026,1744411832726,-273.46169017,0.00024697,2]
[357741027,1744411832736,-500.0,0.00024697,2]
[357741028,1744411832746,-500.0,0.00024699,2]
[357741029,1744411832756,-275.55251116,0.00024699,2]
[357741030,1744411832768,-36380.29158388,0.000247,2]
[357741031,1744411832782,-9730.6568734,0.000247,2]
[357741057,1744411838486,-402.0,0.00024606,2]
[357741058,1744411838496,-510.53381358,0.00024697,2]
[357741059,1744411838505,-500.0,0.00024697,2]
[357741060,1744411838515,-500.0,0.00024697,2]
[357741061,1744411838524,-500.0,0.00024697,2]
[357741062,1744411838533,-500.0,0.00024697,2]
[357741063,1744411838543,-500.0,0.00024697,2]
[357741064,1744411838553,-50786.70422038,0.000247,2]
[357741065,1744411838566,-6605.9736437,0.000247,2]
[357741066,1744411838578,-2940.03693147,0.000247,2]
[357741067,1744411838590,-2171.84590064,0.000247,2]
[357741073,1744411840706,-2808.88207405,0.000247,2]
[357741074,1744411840718,-88560.17861333,0.000247,2]
[357741075,1744411840730,-1867.854828,0.000247,2]
[357741086,1744411843551,-1759.24354994,0.000247,2]
[357741087,1744411843563,-12907.36412238,0.000247,2]
[357741097,1744411846487,-4160.6024,0.000247,2]
[357741102,1744412701556,3256.91,0.00027,30]
[357741103,1744412754717,1628.46,0.00014,10]
[357741153,1744413038706,-419.71244257,0.0002339,2]
[357741154,1744413038716,-287.6644216,0.00023465,2]
[357741155,1744413038726,-250.0,0.00023633,2]
[357741156,1744413038735,-254.9248599,0.00024152,2]
[357741157,1744413038744,-153.0,0.00024152,2]
[357741158,1744413038754,-153.0,0.00024152,2]
[357741159,1744413038764,-800.0,0.00024214,2]
[357741160,1744413038774,-800.0,0.00024298,2]
[357741161,1744413038784,-300.0,0.00024451,2]
[357741162,1744413038793,-153.0,0.00024452,2]
[357741163,1744413038803,-160.0,0.00024457,2]
[357741164,1744413038812,-500.0,0.00024499,2]
[357741165,1744413038822,-500.0,0.00024499,2]
[357741166,1744413038831,-155.21376118,0.00024499,2]
[357741167,1744413038841,-400.74324701,0.000245,2]
[357741224,1744413046602,-3953.90707719,0.00024499,2]
[357741225,1744413046612,-199.59292281,0.000245,2]
[357741227,1744413046719,-441.8099972,0.000245,2]
[357741228,1744413046731,-225.56172933,0.000245,2]
[357741229,1744413046740,-316.91827067,0.00024573,2]
[357741252,1744413367248,2000.0,0.00027,30]
[357741254,1744413388628,2000.0,0.00027,30]
[357741255,1744413403514,2000.0,0.00027,30]
[357741256,1744413435139,1843.84,0.00027,30]
[357741329,1744414231742,-500.0,0.00023164,2]
[357741332,1744414231754,-800.0,0.00023232,2]
[357741334,1744414231764,-2200.0,0.000233,2]
[357741336,1744414231776,-53073.01866182,0.000233,2]
[357741344,1744414237994,-8042.30629515,0.000233,2]
[357741345,1744414238006,-399.82719863,0.000233,2]
[357741346,1744414238018,-946.37722602,0.000233,2]
[357741347,1744414238030,-4992.65182126,0.000233,2]
[357741348,1744414238282,-10958.50768806,0.000233,2]
[357741349,1744414238304,-14348.20281552,0.000233,2]
[357741350,1744414238314,-1109.24440935,0.00023373,2]
[357741351,1744414238327,-800.0,0.00023377,2]
[357741352,1744414238338,-300.0,0.00023466,2]
[357741353,1744414238349,-300.0,0.00023466,2]
[357741354,1744414238359,-500.0,0.00023466,2]
[357741355,1744414238370,-500.0,0.00023466,2]
[357741356,1744414238380,-500.0,0.00023466,2]
[357741357,1744414238390,-267.11450957,0.00023466,2]
[357741358,1744414238400,-500.0,0.00023466,2]
[357741359,1744414238410,-500.0,0.00023466,2]
[357741360,1744414238420,-500.0,0.00023466,2]
[357741361,1744414238430,-500.0,0.00023466,2]
[357741362,1744414238440,-500.0,0.00023466,2]
[357741363,1744414238449,-500.0,0.00023466,2]
[357741364,1744414238459,-500.0,0.00023466,2]
[357741365,1744414238471,-500.0,0.00023466,2]
[357741366,1744414238481,-457.61440258,0.00023466,2]
[357741367,1744414238491,-11885.7441661,0.00023467,2]
[357741368,1744414240148,-24849.74751425,0.00023467,2]
[357741369,1744414240159,-296.08236997,0.00023468,2]
[357741370,1744414240170,-2068.85363917,0.00023468,3]
[357741371,1744414240179,-800.0,0.00023471,2]
[357741373,1744414240190,-214.09997504,0.0002349,2]
[357741374,1744414240200,-500.0,0.0002349,2]
[357741375,1744414240210,-204.93612602,0.0002349,2]
[357741376,1744414240220,-4359.37484229,0.00023491,2]
[357741495,1744415432074,-170.0,0.00022,2]
[357741497,1744415432084,-170.0,0.00022192,2]
[357741499,1744415432094,-227.0,0.00022609,2]
[357741501,1744415432103,-11895.4695132,0.0002261,2]
[357741503,1744415432114,-250.0,0.00022876,2]
[357741506,1744415432125,-300.0,0.00022968,2]
[357741508,1744415432134,-170.0,0.00023014,2]
[357741510,1744415432143,-245.24624641,0.00023064,2]
[357741512,1744415432153,-2436.28,0.0002349,2]
[357741514,1744415432162,-800.0,0.00023532,2]
[357741515,1744415432173,-266.3611142,0.00023552,2]
[357741518,1744415432183,-534.03052932,0.000239,5]
[357741519,1744415432197,-160.0,0.00023982,2]
[357741521,1744415432206,-800.0,0.00024,2]
[357741523,1744415432216,-500.0,0.00024072,2]
[357741525,1744415432225,-191.1936449,0.00024152,2]
[357741527,1744415432237,-174.0,0.00024164,2]
[357741528,1744415432246,-585.83126678,0.00024199,2]
[357741530,1744415432256,-970.58885819,0.0002424,2]
[357741533,1744415432266,-199.27075634,0.000243,2]
[357741535,1744415432276,-151.0,0.00024325,2]
[357741537,1744415432286,-2837.8,0.0002434,2]
[357741539,1744415432296,-2837.8,0.0002434,2]
[357741541,1744415432305,-2837.8,0.0002434,2]
[357741543,1744415432315,-2837.8,0.0002434,2]
[357741545,1744415432324,-2837.8,0.0002434,2]
[357741547,1744415432333,-2837.8,0.0002434,2]
[357741549,1744415432343,-2837.8,0.0002434,2]
[357741551,1744415432353,-2837.7,0.0002434,2]
[357741553,1744415432363,-500.0,0.00024373,2]
[357741554,1744415432372,-207.4,0.00024385,2]
[357741555,1744415432382,-151.0,0.00024385,2]
[357741556,1744415432393,-151.0,0.00024385,2]
[357741557,1744415432403,-151.0,0.00024385,2]
[357741558,1744415432412,-286.7168989,0.00024385,2]
[357741559,1744415432422,-151.0,0.00024385,2]
[357741560,1744415432432,-230.04,0.00024389,3]
[357741561,1744415432442,-690.16,0.00024389,3]
[357741562,1744415432451,-500.0,0.00024398,2]
[357741563,1744415432461,-200.91837119,0.00024398,2]
[357741564,1744415432471,-155.14201101,0.00024398,2]
[357741565,1744415432480,-72050.80018828,0.00024399,2]
[357741566,1744415432490,-2258.93943328,0.00024399,3]
[357741567,1744415432500,-37899.09473328,0.000244,2]
[357741568,1744415432513,-39950.47737892,0.000244,2]
[357741569,1744415432525,-447.3501462,0.000244,2]
[357741588,1744415437926,-170.0,0.00022,2]
[357741589,1744415437936,-395.42440995,0.00022609,2]
[357741590,1744415437952,-104.57559005,0.00022609,2]
[357741591,1744415437963,-500.0,0.00022609,2]
[357741592,1744415437973,-500.0,0.00022609,2]
[357741593,1744415437985,-370.10915234,0.00022609,2]
[357741594,1744415437998,-52.40366527,0.00022609,2]
[357741595,1744415438008,-500.0,0.00022609,2]
[357741596,1744415438017,-64.56657046,0.00022609,2]
[357741597,1744415438029,-435.43342954,0.00022609,2]
[357741598,1744415438039,-500.0,0.00022609,2]
[357741599,1744415438050,-500.0,0.00022609,2]
[357741600,1744415438060,-375.13550033,0.00022609,2]
[357741601,1744415438071,-206.6181106,0.00022609,2]
[357741602,1744415438085,-500.0,0.00022609,2]
[357741603,1744415438096,-547.34180194,0.00022609,2]
[357741604,1744415438107,-500.0,0.00022609,2]
[357741605,1744415438117,-24942.87792444,0.000244,2]
[357741606,1744415438130,-792.2,0.000244,2]
[357741609,1744415440230,-170.0,0.00023014,2]
[357741610,1744415440241,-170.0,0.00024164,2]
[357741611,1744415440252,-525.8162718,0.000244,2]
[357741612,1744415440265,-36775.0229103,0.000244,2]
[357741627,1744415441822,-0.05115382,0.000244,2]
[357741628,1744415442154,-545.1936999,0.000244,2]
[357741648,1744415442981,-10625.28116885,0.000244,2]
[357741649,1744415442993,-737.16808519,0.000244,2]
[357741650,1744415443005,-474.70601886,0.000244,2]
[357741651,1744415443016,-6044.84798019,0.000244,2]
[357741673,1744415446004,-207.4,0.00024325,2]
[357741674,1744415446014,-4637.99638205,0.000244,2]
[357741675,1744415446026,-37118.63574751,0.000244,2]
[357741676,1744415446038,-3288.42714662,0.000244,2]
[357741677,1744415446050,-3046.74680909,0.000244,2]
[357741678,1744415446062,-21149.67219374,0.000244,2]
[357741679,1744415575192,9146.869427,0.00025,31]
[357741686,1744416494635,192.0,0.00027,30]
[357741697,1744416632095,-250.0,0.00022509,2]
[357741698,1744416632108,-700.0,0.00023118,2]
[357741699,1744416632118,-197.2134218,0.00023221,2]
[357741700,1744416632128,-192.0,0.00024,2]
[357741701,1744416632138,-192.0,0.00024,3]
[357741702,1744416632148,-192.0,0.00024,2]
[357741703,1744416632158,-372.2726546,0.00024152,2]
[357741704,1744416632168,-5259.47446369,0.00024169,2]
[357741705,1744416632177,-849.26525089,0.00024199,2]
[357741706,1744416632187,-500.0,0.00024221,2]
[357741708,1744416632203,-300.0,0.00024267,2]
[357741710,1744416632214,-300.0,0.00024267,2]
[357741712,1744416632224,-500.0,0.00024273,2]
[357741714,1744416632234,-500.0,0.00024273,2]
[357741716,1744416632244,-500.0,0.00024273,2]
[357741718,1744416632255,-500.0,0.00024273,2]
[357741720,1744416632264,-515.57875159,0.00024273,2]
[357741721,1744416632274,-200.0,0.00024273,2]
[357741722,1744416632285,-500.2617775,0.00024273,2]
[357741723,1744416632296,-150.8173723,0.00024273,2]
[357741724,1744416632306,-500.0,0.00024273,2]
[357741725,1744416632316,-500.0,0.00024273,2]
[357741726,1744416632327,-500.0,0.00024273,2]
[357741727,1744416632339,-353.11018898,0.00024273,2]
[357741728,1744416632350,-1340.2076407,0.00024273,2]
[357741729,1744416632360,-207.4,0.00024285,2]
[357741730,1744416632370,-151.0,0.00024285,2]
[357741731,1744416632380,-151.0,0.00024285,2]
[357741732,1744416632390,-151.0,0.00024285,2]
[357741733,1744416632400,-698.82,0.00024289,3]
[357741734,1744416632410,-465.9,0.0002429,3]
[357741735,1744416632420,-232.94,0.0002429,3]
[357741736,1744416632430,-152.0,0.00024295,2]
[357741737,1744416632440,-500.0,0.00024298,2]
[357741738,1744416632449,-188.82247625,0.00024298,2]
[357741739,1744416632459,-245.9359726,0.00024298,2]
[357741740,1744416632470,-160.0,0.00024299,2]
[357741741,1744416632480,-72367.91803346,0.00024299,2]
[357741742,1744416632490,-1840.45102349,0.00024299,3]
[357741743,1744416632500,-264173.48614503,0.000243,2]
[357741744,1744416632514,-105826.51385497,0.000243,2]
[357741745,1744416632524,-156.587,0.0002434,2]
[357741746,1744416632534,-162.380719,0.00024395,2]
[357741747,1744416632544,-190.871953,0.000244,7]
[357741748,1744416632554,-151.0,0.000244,7]
[357741749,1744416632565,-500.0,0.000244,7]
[357741750,1744416632575,-358.0,0.000244,3]
[357741751,1744416632584,-166.0,0.000244,3]
[357741752,1744416632594,-201.0,0.000244,3]
[357741753,1744416632605,-166.0,0.000244,3]
[357741754,1744416632615,-202.2309398,0.000244,3]
[357741755,1744416632625,-166.0,0.000244,3]
[357741756,1744416632635,-169.0,0.000244,3]
[357741757,1744416632645,-169.0,0.000244,3]
[357741758,1744416632655,-358.0,0.000244,3]
[357741759,1744416632665,-358.0,0.000244,3]
[357741760,1744416632676,-358.0,0.000244,3]
[357741761,1744416632687,-208.69615029,0.000244,3]
[357741762,1744416632697,-318.0,0.000244,3]
[357741763,1744416632707,-284.6449498,0.000244,3]
[357741764,1744416632718,-318.0,0.000244,3]
[357741765,1744416632728,-318.0,0.000244,3]
[357741766,1744416632738,-318.0,0.000244,3]
[357741767,1744416632748,-318.0,0.000244,3]
[357741768,1744416632759,-318.0,0.000244,3]
[357741769,1744416632770,-318.0,0.000244,3]
[357741770,1744416632780,-160.0,0.000244,3]
[357741771,1744416632791,-192.0,0.000244,4]
[357741772,1744416632801,-192.0,0.000244,2]
[357741773,1744416632811,-192.0,0.000244,3]
[357741774,1744416632823,-353.11018896,0.00024405,2]
[357741775,1744416632833,-168.3888056,0.0002445,2]
[357741776,1744416632843,-151.0,0.00024452,7]
[357741777,1744416632854,-500.0,0.00024498,2]
[357741778,1744416632864,-174.61919141,0.00024505,2]
[357741779,1744416632874,-543.0,0.00024533,2]
[357741780,1744416632884,-706.0,0.00024533,2]
[357741781,1744416632894,-2512.573889,0.00024533,2]
[357741782,1744416632904,-402.0,0.00024533,2]
[357741783,1744416632914,-353.11018896,0.00024537,2]
[357741784,1744416632924,-181.08010149,0.0002456,2]
[357741785,1744416632934,-183.56220807,0.00024572,2]
[357741786,1744416632944,-176.22538516,0.00024572,2]
[357741787,1744416632953,-187.78006525,0.00024615,2]
[357741788,1744416632963,-353.11018896,0.00024668,2]
[357741789,1744416632973,-1198.38621356,0.00024735,2]
[357741790,1744416632983,-160.0,0.00024769,2]
[357741791,1744416632993,-2604.7,0.0002477,2]
[357741792,1744416633003,-2604.7,0.0002477,2]
[357741793,1744416633014,-2604.7,0.0002477,2]
[357741794,1744416633024,-2604.7,0.0002477,2]
[357741795,1744416633034,-2604.7,0.0002477,2]
[357741796,1744416633044,-2604.7,0.0002477,2]
[357741797,1744416633054,-2604.7,0.0002477,2]
[357741798,1744416633064,-2604.7,0.0002477,2]
[357741799,1744416633074,-2604.7,0.0002477,2]
[357741800,1744416633085,-2604.7,0.0002477,2]
[357741801,1744416633097,-2604.7,0.0002477,2]
[357741802,1744416633318,-2604.7,0.0002477,2]
[357741803,1744416633332,-2604.7,0.0002477,2]
[357741804,1744416633342,-2604.7,0.0002477,2]
[357741805,1744416633352,-2604.7,0.0002477,2]
[357741806,1744416633362,-2604.7,0.0002477,2]
[357741807,1744416633372,-2604.7,0.0002477,2]
[357741808,1744416633382,-2604.7,0.0002477,2]
[357741809,1744416633392,-2604.7,0.0002477,2]
[357741810,1744416633402,-2604.7,0.0002477,2]
[357741811,1744416633411,-2604.7,0.0002477,2]
[357741812,1744416633422,-2604.7,0.0002477,2]
[357741813,1744416633432,-2604.7,0.0002477,2]
[357741814,1744416633441,-2604.7,0.0002477,2]
[357741815,1744416633451,-2604.7,0.0002477,2]
[357741816,1744416633460,-2604.7,0.0002477,2]
[357741817,1744416633470,-2604.7,0.0002477,2]
[357741818,1744416633479,-2604.7,0.0002477,2]
[357741819,1744416633489,-2604.7,0.0002477,2]
[357741820,1744416633498,-2604.7,0.0002477,2]
[357741821,1744416633508,-2604.7,0.0002477,2]
[357741822,1744416633518,-2604.6,0.0002477,2]
[357741823,1744416633527,-151.0,0.0002477,7]
[357741824,1744416633539,-151.0,0.0002477,7]
[357741825,1744416633549,-411.128011,0.0002477,2]
[357741826,1744416633559,-411.128011,0.0002477,2]